[Event "Live Chess"]
[Site "Chess.com"]
[Date "2023.05.21"]
[Round "-"]
[White "stevochess11"]
[Black "1600x"]
[Result "0-1"]
[WhiteElo "1666"]
[BlackElo "1928"]
[TimeControl "300"]
[EndTime "8:24:26 PDT"]
[Termination "1600x won by checkmate"]

1. d4 {[%clk 0:04:58.4]} 1... e5 {[%clk 0:04:59.8]} 2. Nf3 {[%clk 0:04:57.2]}
2... e4 {[%clk 0:04:58.5]} 3. Ne5 {[%clk 0:04:56]} 3... d6 {[%clk 0:04:56]} 4.
Nc4 {[%clk 0:04:51.1]} 4... c6 {[%clk 0:04:53.9]} 5. f3 {[%clk 0:04:39.4]} 5...
d5 {[%clk 0:04:52.4]} 6. Ne3 {[%clk 0:04:35]} 6... f5 {[%clk 0:04:50.5]} 7. g3
{[%clk 0:04:25.2]} 7... h6 {[%clk 0:04:47.3]} 8. c4 {[%clk 0:04:22.4]} 8... f4
{[%clk 0:04:45.7]} 9. gxf4 {[%clk 0:04:20.8]} 9... Bb4+ {[%clk 0:04:44]} 10. Bd2
{[%clk 0:04:18.9]} 10... Qh4# {[%clk 0:04:42]} 0-1

[Event "Live Chess"]
[Site "Chess.com"]
[Date "2023.05.21"]
[Round "-"]
[White "NomisY"]
[Black "raminguy"]
[Result "1-0"]
[WhiteElo "1567"]
[BlackElo "1934"]
[TimeControl "300"]
[EndTime "8:24:39 PDT"]
[Termination "NomisY won by resignation"]

1. d3 {[%clk 0:04:41.7]} 1... d5 {[%clk 0:04:56.6]} 2. Nf3 {[%clk 0:04:30.3]}
2... Nf6 {[%clk 0:04:54.9]} 3. g3 {[%clk 0:04:29.3]} 3... c5 {[%clk 0:04:50.9]}
4. Bg2 {[%clk 0:04:23.4]} 4... Nc6 {[%clk 0:04:49.6]} 5. O-O {[%clk 0:04:16.8]}
5... e5 {[%clk 0:04:47.8]} 6. c4 {[%clk 0:04:06.8]} 6... d4 {[%clk 0:04:43.9]}
7. e3 {[%clk 0:04:00.4]} 7... Be7 {[%clk 0:04:41.8]} 8. exd4 {[%clk 0:03:58.5]}
8... exd4 {[%clk 0:04:39.2]} 9. Re1 {[%clk 0:03:51.3]} 9... O-O {[%clk
0:04:38.2]} 10. Bf4 {[%clk 0:03:50.9]} 10... Bf5 {[%clk 0:04:33.4]} 11. Ne5
{[%clk 0:03:43]} 11... Nxe5 {[%clk 0:04:21.6]} 12. Bxe5 {[%clk 0:03:41.6]} 12...
Qc8 {[%clk 0:04:16.1]} 13. Qf3 {[%clk 0:03:36.7]} 13... Re8 {[%clk 0:03:40.8]}
14. Qxb7 {[%clk 0:03:27.2]} 14... Qxb7 {[%clk 0:03:38.7]} 15. Bxb7 {[%clk
0:03:26.5]} 15... Rad8 {[%clk 0:03:34.7]} 16. Nd2 {[%clk 0:03:16.4]} 16... Bxd3
{[%clk 0:03:32.3]} 17. Bc6 {[%clk 0:03:10.1]} 17... Rf8 {[%clk 0:03:24.7]} 18.
Bc7 {[%clk 0:03:08.9]} 18... Bd6 {[%clk 0:02:58.8]} 19. Bxd8 {[%clk 0:03:04.6]}
19... Rxd8 {[%clk 0:02:58.7]} 20. Rad1 {[%clk 0:02:57.6]} 20... Bc2 {[%clk
0:02:51.9]} 21. Rc1 {[%clk 0:02:52]} 21... Bf5 {[%clk 0:02:46.3]} 22. Ne4 {[%clk
0:02:48.4]} 22... Nxe4 {[%clk 0:02:28.5]} 23. Bxe4 {[%clk 0:02:47.3]} 23... Be6
{[%clk 0:02:27.6]} 24. b3 {[%clk 0:02:37.1]} 24... g6 {[%clk 0:02:25.6]} 25. Kg2
{[%clk 0:02:33.7]} 25... Rb8 {[%clk 0:02:21.5]} 26. f4 {[%clk 0:02:26.4]} 26...
Rb6 {[%clk 0:02:18.7]} 27. Rc2 {[%clk 0:02:17.6]} 27... a5 {[%clk 0:02:08.3]}
28. Rf2 {[%clk 0:02:14.8]} 28... a4 {[%clk 0:01:55.5]} 29. f5 {[%clk 0:02:12.1]}
29... Bd7 {[%clk 0:01:46.7]} 30. fxg6 {[%clk 0:02:01.9]} 30... fxg6 {[%clk
0:01:40.8]} 31. Bd5+ {[%clk 0:01:56.2]} 31... Kh8 {[%clk 0:01:28.3]} 32. Rf7
{[%clk 0:01:55.3]} 1-0

[Event "Live Chess"]
[Site "Chess.com"]
[Date "2023.05.21"]
[Round "-"]
[White "bedsdrout"]
[Black "McSlash1"]
[Result "1-0"]
[WhiteElo "1814"]
[BlackElo "1973"]
[TimeControl "300"]
[EndTime "8:24:58 PDT"]
[Termination "bedsdrout won by resignation"]

1. e4 {[%clk 0:04:58.2]} 1... c5 {[%clk 0:04:59.6]} 2. Nc3 {[%clk 0:04:54.4]}
2... Nc6 {[%clk 0:04:58.5]} 3. Nf3 {[%clk 0:04:52.4]} 3... g6 {[%clk 0:04:58.2]}
4. Bb5 {[%clk 0:04:48.7]} 4... Bg7 {[%clk 0:04:57.6]} 5. Bxc6 {[%clk 0:04:46.8]}
5... bxc6 {[%clk 0:04:57.4]} 6. d3 {[%clk 0:04:44.9]} 6... d6 {[%clk 0:04:56.4]}
7. e5 {[%clk 0:04:43]} 7... d5 {[%clk 0:04:55.1]} 8. O-O {[%clk 0:04:30.6]} 8...
e6 {[%clk 0:04:53.7]} 9. b3 {[%clk 0:04:26.6]} 9... Ne7 {[%clk 0:04:53.6]} 10.
Na4 {[%clk 0:04:23.9]} 10... c4 {[%clk 0:04:47.1]} 11. dxc4 {[%clk 0:04:20.7]}
11... O-O {[%clk 0:04:45.2]} 12. Ba3 {[%clk 0:04:18]} 12... Re8 {[%clk
0:04:42.9]} 13. Re1 {[%clk 0:04:15.2]} 13... Bb7 {[%clk 0:04:34.6]} 14. Nd4
{[%clk 0:04:12.4]} 14... a6 {[%clk 0:04:30.2]} 15. Bd6 {[%clk 0:04:08.8]} 15...
Nc8 {[%clk 0:04:21.7]} 16. c5 {[%clk 0:04:04.8]} 16... Nxd6 {[%clk 0:04:19.6]}
17. cxd6 {[%clk 0:04:00.3]} 17... Rc8 {[%clk 0:04:13.7]} 18. b4 {[%clk
0:03:56.4]} 18... f6 {[%clk 0:04:05.5]} 19. Nc5 {[%clk 0:03:44.4]} 19... Rb8
{[%clk 0:03:59.1]} 20. Ndxe6 {[%clk 0:03:41.3]} 20... Rxe6 {[%clk 0:03:49.9]}
21. Nxe6 {[%clk 0:03:39.1]} 21... Qe8 {[%clk 0:03:47]} 22. Nxg7 {[%clk 0:03:36]}
22... Kxg7 {[%clk 0:03:39.3]} 23. exf6+ {[%clk 0:03:31.7]} 1-0

[Event "Live Chess"]
[Site "Chess.com"]
[Date "2023.05.21"]
[Round "-"]
[White "yarek"]
[Black "Ed_Knox"]
[Result "1-0"]
[WhiteElo "1863"]
[BlackElo "1475"]
[TimeControl "300"]
[EndTime "8:25:05 PDT"]
[Termination "yarek won by checkmate"]

1. e4 {[%clk 0:04:55.2]} 1... d5 {[%clk 0:04:58.9]} 2. Nf3 {[%clk 0:04:51.9]}
2... dxe4 {[%clk 0:04:57.8]} 3. Ng5 {[%clk 0:04:51.2]} 3... e3 {[%clk
0:04:56.1]} 4. fxe3 {[%clk 0:04:45.8]} 4... e5 {[%clk 0:04:55]} 5. Nf3 {[%clk
0:04:23.6]} 5... Nc6 {[%clk 0:04:53]} 6. Be2 {[%clk 0:04:16.1]} 6... Nf6 {[%clk
0:04:50.9]} 7. O-O {[%clk 0:04:15.4]} 7... Bc5 {[%clk 0:04:46.9]} 8. Nc3 {[%clk
0:04:09.9]} 8... O-O {[%clk 0:04:45.1]} 9. d3 {[%clk 0:04:00.5]} 9... Re8 {[%clk
0:04:28.4]} 10. Kh1 {[%clk 0:03:57.9]} 10... b6 {[%clk 0:04:25.3]} 11. e4 {[%clk
0:03:52.8]} 11... Bb7 {[%clk 0:04:23.2]} 12. Bg5 {[%clk 0:03:49.6]} 12... Qd6
{[%clk 0:04:14.1]} 13. Bxf6 {[%clk 0:03:32.2]} 13... Qxf6 {[%clk 0:04:12.2]} 14.
Nd5 {[%clk 0:03:31.8]} 14... Qd6 {[%clk 0:03:59]} 15. Ng5 {[%clk 0:03:29]} 15...
Ne7 {[%clk 0:03:45.2]} 16. Nxf7 {[%clk 0:03:23.7]} 16... Qg6 {[%clk 0:03:28.4]}
17. Nxc7 {[%clk 0:03:17.1]} 17... Rf8 {[%clk 0:02:56.4]} 18. Bh5 {[%clk
0:03:08.7]} 18... Qc6 {[%clk 0:02:30.6]} 19. Nxa8 {[%clk 0:02:59]} 19... Bxa8
{[%clk 0:02:28]} 20. Qg4 {[%clk 0:02:51.7]} 20... Ng6 {[%clk 0:02:06]} 21. Bxg6
{[%clk 0:02:44.5]} 21... hxg6 {[%clk 0:02:04.9]} 22. Nxe5 {[%clk 0:02:38.1]}
22... Rxf1+ {[%clk 0:01:15.8]} 23. Rxf1 {[%clk 0:02:35.5]} 23... Qd6 {[%clk
0:01:04.5]} 24. Qc8+ {[%clk 0:02:27.6]} 24... Qf8 {[%clk 0:00:59.3]} 25. Rxf8+
{[%clk 0:02:22.3]} 25... Bxf8 {[%clk 0:00:58.1]} 26. Qxa8 {[%clk 0:02:20]} 26...
g5 {[%clk 0:00:56.7]} 27. Qxa7 {[%clk 0:02:17.8]} 27... g4 {[%clk 0:00:55.3]}
28. Qf7+ {[%clk 0:02:16.4]} 28... Kh7 {[%clk 0:00:53.6]} 29. Qxf8 {[%clk
0:02:14.5]} 29... g3 {[%clk 0:00:52.7]} 30. hxg3 {[%clk 0:02:08.1]} 30... b5
{[%clk 0:00:51.3]} 31. Qf5+ {[%clk 0:02:02.2]} 31... g6 {[%clk 0:00:49.8]} 32.
Qxg6+ {[%clk 0:02:00.4]} 32... Kh8 {[%clk 0:00:47.9]} 33. Nf7# {[%clk
0:01:59.6]} 1-0

[Event "Live Chess"]
[Site "Chess.com"]
[Date "2023.05.21"]
[Round "-"]
[White "Cimon"]
[Black "SavagePawn7"]
[Result "1-0"]
[WhiteElo "1844"]
[BlackElo "777"]
[TimeControl "300"]
[EndTime "8:25:05 PDT"]
[Termination "Cimon won by resignation"]

1. b3 {[%clk 0:04:57.2]} 1... e5 {[%clk 0:04:56.7]} 2. Bb2 {[%clk 0:04:56.2]}
2... Nc6 {[%clk 0:04:54]} 3. e3 {[%clk 0:04:53.8]} 3... a5 {[%clk 0:04:52.6]} 4.
Nf3 {[%clk 0:04:51.6]} 4... a4 {[%clk 0:04:51.5]} 5. d4 {[%clk 0:04:48.5]} 5...
exd4 {[%clk 0:04:46.4]} 6. exd4 {[%clk 0:04:45.1]} 6... axb3 {[%clk 0:04:45.2]}
7. cxb3 {[%clk 0:04:44]} 7... d5 {[%clk 0:04:37.6]} 8. Be2 {[%clk 0:04:40]} 8...
Bg4 {[%clk 0:04:34.4]} 9. O-O {[%clk 0:04:29.2]} 9... Qf6 {[%clk 0:04:23.7]} 10.
Qd3 {[%clk 0:04:21.6]} 10... O-O-O {[%clk 0:04:17.7]} 11. a3 {[%clk 0:04:11.8]}
11... Bxf3 {[%clk 0:04:11.1]} 12. Bxf3 {[%clk 0:04:09.4]} 12... g6 {[%clk
0:04:00.4]} 13. Nc3 {[%clk 0:04:04.9]} 13... Bg7 {[%clk 0:03:58.8]} 14. Nxd5
{[%clk 0:04:02.3]} 14... Rxd5 {[%clk 0:03:30.6]} 15. Bxd5 {[%clk 0:04:00]} 15...
Nxd4 {[%clk 0:03:24.8]} 16. Bxd4 {[%clk 0:03:58.6]} 16... Qxd4 {[%clk
0:03:22.2]} 17. Qxd4 {[%clk 0:03:57.6]} 17... Bxd4 {[%clk 0:03:20.2]} 18. Rad1
{[%clk 0:03:50.5]} 18... Bb6 {[%clk 0:03:13.9]} 19. Bxf7 {[%clk 0:03:47]} 19...
Nf6 {[%clk 0:03:12]} 20. Be6+ {[%clk 0:03:41]} 20... Kb8 {[%clk 0:03:10.2]} 21.
h3 {[%clk 0:03:38.2]} 21... Re8 {[%clk 0:03:06]} 22. Bc4 {[%clk 0:03:33.2]} 1-0

[Event "Live Chess"]
[Site "Chess.com"]
[Date "2023.05.21"]
[Round "-"]
[White "mattihelenius2"]
[Black "manthanit"]
[Result "0-1"]
[WhiteElo "483"]
[BlackElo "1103"]
[TimeControl "300"]
[EndTime "8:25:21 PDT"]
[Termination "manthanit won by checkmate"]

1. d4 {[%clk 0:04:58.5]} 1... e6 {[%clk 0:04:59.3]} 2. e4 {[%clk 0:04:57.4]}
2... d5 {[%clk 0:04:58.9]} 3. c3 {[%clk 0:04:55.8]} 3... dxe4 {[%clk 0:04:57.5]}
4. f3 {[%clk 0:04:50.9]} 4... Nf6 {[%clk 0:04:56.9]} 5. fxe4 {[%clk 0:04:49.5]}
5... Nxe4 {[%clk 0:04:55.2]} 6. Nf3 {[%clk 0:04:47.2]} 6... Be7 {[%clk
0:04:52.4]} 7. Qd3 {[%clk 0:04:45.1]} 7... Nf6 {[%clk 0:04:51.1]} 8. Ne5 {[%clk
0:04:43.2]} 8... Nbd7 {[%clk 0:04:45.7]} 9. Qb5 {[%clk 0:04:39.4]} 9... O-O
{[%clk 0:04:42.4]} 10. Bg5 {[%clk 0:04:33.2]} 10... Nxe5 {[%clk 0:04:41]} 11.
Bxf6 {[%clk 0:04:31.6]} 11... Bxf6 {[%clk 0:04:36.6]} 12. dxe5 {[%clk
0:04:29.6]} 12... Bg5 {[%clk 0:04:33.3]} 13. Nd2 {[%clk 0:04:09.1]} 13... Qxd2#
{[%clk 0:04:30.5]} 0-1

[Event "Live Chess"]
[Site "Chess.com"]
[Date "2023.05.21"]
[Round "-"]
[White "HonestJoe1"]
[Black "chessfiction"]
[Result "0-1"]
[WhiteElo "2094"]
[BlackElo "2297"]
[TimeControl "300"]
[EndTime "8:25:24 PDT"]
[Termination "chessfiction won by resignation"]

1. d4 {[%clk 0:04:57.7]} 1... d6 {[%clk 0:04:58.5]} 2. e4 {[%clk 0:04:55.6]}
2... Nf6 {[%clk 0:04:58.4]} 3. Nc3 {[%clk 0:04:54.4]} 3... c6 {[%clk 0:04:55.3]}
4. Bg5 {[%clk 0:04:51.2]} 4... Nbd7 {[%clk 0:04:53.2]} 5. f4 {[%clk 0:04:49.4]}
5... Qa5 {[%clk 0:04:48.3]} 6. Qd2 {[%clk 0:04:44.3]} 6... e5 {[%clk 0:04:47]}
7. dxe5 {[%clk 0:04:29.2]} 7... dxe5 {[%clk 0:04:46.9]} 8. O-O-O {[%clk
0:04:25.5]} 8... Bb4 {[%clk 0:04:45]} 9. fxe5 {[%clk 0:04:09.8]} 9... Nxe4
{[%clk 0:04:37.2]} 10. Qf4 {[%clk 0:03:56.4]} 10... Nxc3 {[%clk 0:04:30.3]} 11.
bxc3 {[%clk 0:03:55.1]} 11... Bxc3 {[%clk 0:04:22.6]} 12. Rd3 {[%clk 0:03:32.2]}
12... Bxe5 {[%clk 0:04:08.2]} 13. Qe3 {[%clk 0:03:21.9]} 13... O-O {[%clk
0:03:57.1]} 14. Nf3 {[%clk 0:03:20]} 14... Qxa2 {[%clk 0:03:43.5]} 0-1

[Event "Live Chess"]
[Site "Chess.com"]
[Date "2023.05.21"]
[Round "-"]
[White "diana21strabt"]
[Black "KeithArkell"]
[Result "1/2-1/2"]
[WhiteElo "1755"]
[BlackElo "2455"]
[TimeControl "300"]
[EndTime "8:25:49 PDT"]
[Termination "Game drawn by repetition"]

1. e4 {[%clk 0:04:57.6]} 1... c6 {[%clk 0:04:58.7]} 2. d4 {[%clk 0:04:56.2]}
2... d5 {[%clk 0:04:57.4]} 3. Nc3 {[%clk 0:04:55]} 3... dxe4 {[%clk 0:04:55.9]}
4. Nxe4 {[%clk 0:04:54]} 4... Nd7 {[%clk 0:04:54.3]} 5. Nf3 {[%clk 0:04:52.9]}
5... Ngf6 {[%clk 0:04:53.3]} 6. Bd3 {[%clk 0:04:51.4]} 6... Nxe4 {[%clk
0:04:52.2]} 7. Bxe4 {[%clk 0:04:43.8]} 7... Nf6 {[%clk 0:04:51.2]} 8. Bd3 {[%clk
0:04:40.2]} 8... Bg4 {[%clk 0:04:49.8]} 9. Be3 {[%clk 0:04:35.2]} 9... e6 {[%clk
0:04:40.6]} 10. O-O {[%clk 0:04:30]} 10... Be7 {[%clk 0:04:38.7]} 11. h3 {[%clk
0:04:25.9]} 11... Bxf3 {[%clk 0:04:37.4]} 12. Qxf3 {[%clk 0:04:23.9]} 12... O-O
{[%clk 0:04:36.6]} 13. Rad1 {[%clk 0:04:18.4]} 13... Qd5 {[%clk 0:04:35.2]} 14.
Qxd5 {[%clk 0:04:13.8]} 14... Nxd5 {[%clk 0:04:34]} 15. c4 {[%clk 0:04:12.2]}
15... Nxe3 {[%clk 0:04:31.7]} 16. fxe3 {[%clk 0:04:11.2]} 16... Rfd8 {[%clk
0:04:30.4]} 17. Be4 {[%clk 0:04:03.7]} 17... Rd7 {[%clk 0:04:26.7]} 18. Rd3
{[%clk 0:03:47.4]} 18... Rad8 {[%clk 0:04:24]} 19. Rfd1 {[%clk 0:03:45.9]} 19...
f5 {[%clk 0:04:21.4]} 20. Bf3 {[%clk 0:03:43.2]} 20... Bf6 {[%clk 0:04:19.7]}
21. b3 {[%clk 0:03:33.6]} 21... c5 {[%clk 0:04:15.3]} 22. d5 {[%clk 0:03:23.9]}
22... e5 {[%clk 0:04:14.6]} 23. e4 {[%clk 0:03:19.9]} 23... g6 {[%clk
0:04:09.4]} 24. g4 {[%clk 0:03:12.4]} 24... f4 {[%clk 0:04:04.9]} 25. Rb1 {[%clk
0:03:00.7]} 25... Be7 {[%clk 0:04:01.6]} 26. Kg2 {[%clk 0:02:54.3]} 26... Bd6
{[%clk 0:03:54.8]} 27. Rdd1 {[%clk 0:02:49.7]} 27... a6 {[%clk 0:03:50.9]} 28.
Kf2 {[%clk 0:02:40.7]} 28... b5 {[%clk 0:03:49.1]} 29. Kg2 {[%clk 0:02:38.3]}
29... Rb8 {[%clk 0:03:45.5]} 30. Be2 {[%clk 0:02:34.9]} 30... b4 {[%clk
0:03:43]} 31. Ra1 {[%clk 0:02:16.8]} 31... a5 {[%clk 0:03:33.7]} 32. Bd3 {[%clk
0:02:01.8]} 32... h5 {[%clk 0:03:28.6]} 33. Kf3 {[%clk 0:01:58.5]} 33... hxg4+
{[%clk 0:03:27.3]} 34. hxg4 {[%clk 0:01:55.3]} 34... Kg7 {[%clk 0:03:08.7]} 35.
Rh1 {[%clk 0:01:51.3]} 35... Kf6 {[%clk 0:03:06.5]} 36. Rh6 {[%clk 0:01:41]}
36... Kg5 {[%clk 0:03:03.3]} 37. Rah1 {[%clk 0:01:38.5]} 37... a4 {[%clk
0:03:01.8]} 38. Bc2 {[%clk 0:01:37.3]} 38... axb3 {[%clk 0:03:00.7]} 39. Bxb3
{[%clk 0:01:35.4]} 39... Ra8 {[%clk 0:02:58.3]} 40. Rh7 {[%clk 0:01:33.1]} 40...
Rda7 {[%clk 0:02:50.7]} 41. Rxa7 {[%clk 0:01:27.8]} 41... Rxa7 {[%clk
0:02:50.6]} 42. Rh8 {[%clk 0:01:26.6]} 42... Be7 {[%clk 0:02:37.1]} 43. Rh7
{[%clk 0:01:21.4]} 43... Rc7 {[%clk 0:02:29.5]} 44. Bc2 {[%clk 0:01:17.3]} 44...
Bd6 {[%clk 0:02:12.8]} 45. Rxc7 {[%clk 0:01:11.7]} 45... Bxc7 {[%clk 0:02:11.9]}
46. Ba4 {[%clk 0:01:10.7]} 46... Kh4 {[%clk 0:02:10.5]} 47. Bb3 {[%clk
0:01:09.8]} 47... Kh3 {[%clk 0:02:09.4]} 48. Bd1 {[%clk 0:01:04.8]} 48... Kh2
{[%clk 0:02:08.5]} 49. Kf2 {[%clk 0:01:03.8]} 49... Bd6 {[%clk 0:02:06.4]} 50.
Bf3 {[%clk 0:00:57.5]} 50... Be7 {[%clk 0:02:04.7]} 51. Bg2 {[%clk 0:00:55.7]}
51... Bh4+ {[%clk 0:01:59.1]} 52. Kf3 {[%clk 0:00:54.8]} 52... Kg1 {[%clk
0:01:55.8]} 53. Bh3 {[%clk 0:00:52.7]} 53... Be7 {[%clk 0:01:52.2]} 54. Bg2
{[%clk 0:00:51.3]} 54... Bd6 {[%clk 0:01:48.1]} 55. Bh3 {[%clk 0:00:47.1]} 55...
Kh2 {[%clk 0:01:46.7]} 56. Bg2 {[%clk 0:00:45.5]} 56... Be7 {[%clk 0:01:45.9]}
57. Bf1 {[%clk 0:00:43.5]} 57... Kh1 {[%clk 0:01:43.6]} 58. Kf2 {[%clk
0:00:39.1]} 58... Bh4+ {[%clk 0:01:39.6]} 59. Kf3 {[%clk 0:00:38]} 59... Kg1
{[%clk 0:01:38.4]} 60. Bg2 {[%clk 0:00:36.8]} 60... Be7 {[%clk 0:01:35.9]} 61.
Bh3 {[%clk 0:00:35.8]} 61... Bd6 {[%clk 0:01:13.9]} 62. Bg2 {[%clk 0:00:33.3]}
62... Be7 {[%clk 0:01:13.2]} 63. Bh3 {[%clk 0:00:32.1]} 63... Bd6 {[%clk
0:01:12.5]} 64. Bg2 {[%clk 0:00:31]} 64... Be7 {[%clk 0:01:11.9]} 1/2-1/2

[Event "Live Chess"]
[Site "Chess.com"]
[Date "2023.05.21"]
[Round "-"]
[White "LaupMiths"]
[Black "jimwad"]
[Result "1-0"]
[WhiteElo "1816"]
[BlackElo "1217"]
[TimeControl "300"]
[EndTime "8:25:50 PDT"]
[Termination "LaupMiths won by resignation"]

1. d4 {[%clk 0:04:57]} 1... d5 {[%clk 0:04:58.7]} 2. c4 {[%clk 0:04:54.9]} 2...
c6 {[%clk 0:04:57.7]} 3. Nf3 {[%clk 0:04:52.9]} 3... Nf6 {[%clk 0:04:56.8]} 4.
e3 {[%clk 0:04:52]} 4... Bg4 {[%clk 0:04:55.3]} 5. b3 {[%clk 0:04:51.3]} 5...
Nbd7 {[%clk 0:04:52.8]} 6. Be2 {[%clk 0:04:50.8]} 6... e6 {[%clk 0:04:51.2]} 7.
O-O {[%clk 0:04:50.2]} 7... Be7 {[%clk 0:04:47.2]} 8. Bb2 {[%clk 0:04:49.7]}
8... O-O {[%clk 0:04:45.2]} 9. Nbd2 {[%clk 0:04:49.2]} 9... c5 {[%clk
0:04:39.1]} 10. h3 {[%clk 0:04:48.4]} 10... Bxf3 {[%clk 0:04:37.8]} 11. Nxf3
{[%clk 0:04:48.1]} 11... cxd4 {[%clk 0:04:36.8]} 12. Bxd4 {[%clk 0:04:46.5]}
12... dxc4 {[%clk 0:04:32.1]} 13. Bxc4 {[%clk 0:04:44.8]} 13... Rc8 {[%clk
0:04:19.5]} 14. Qe2 {[%clk 0:04:36.2]} 14... a6 {[%clk 0:04:17.7]} 15. Rfd1
{[%clk 0:04:33.5]} 15... b5 {[%clk 0:04:14.8]} 16. Bd3 {[%clk 0:04:32.7]} 16...
Nd5 {[%clk 0:04:05.8]} 17. Bb2 {[%clk 0:04:14.3]} 17... Bf6 {[%clk 0:04:02.7]}
18. Bxf6 {[%clk 0:04:01.9]} 18... N7xf6 {[%clk 0:03:56.2]} 19. Qb2 {[%clk
0:03:51.1]} 19... Qb6 {[%clk 0:03:32]} 20. Ne5 {[%clk 0:03:37]} 20... Rc7 {[%clk
0:03:21.4]} 21. g4 {[%clk 0:03:22.5]} 21... Rfc8 {[%clk 0:03:19.1]} 22. g5
{[%clk 0:03:19.6]} 22... Ne8 {[%clk 0:03:13.9]} 23. Be4 {[%clk 0:03:00.6]} 23...
Nc3 {[%clk 0:03:03.1]} 24. Rd4 {[%clk 0:02:34.7]} 24... Nxe4 {[%clk 0:03:01.5]}
25. Rxe4 {[%clk 0:02:32.6]} 25... Rc2 {[%clk 0:02:56.7]} 26. Qd4 {[%clk
0:02:29.9]} 26... Qxd4 {[%clk 0:02:55.1]} 27. Rxd4 {[%clk 0:02:28.9]} 27... g6
{[%clk 0:02:48.8]} 28. Rd7 {[%clk 0:02:25]} 28... R2c7 {[%clk 0:02:44.7]} 29.
Rad1 {[%clk 0:02:22.2]} 29... Rxd7 {[%clk 0:02:08.7]} 30. Rxd7 {[%clk
0:02:19.1]} 30... Rc7 {[%clk 0:02:07.7]} 31. Rd8 {[%clk 0:02:13.9]} 31... Kf8
{[%clk 0:02:05]} 32. Ra8 {[%clk 0:02:11.3]} 32... Rc5 {[%clk 0:01:56]} 33. f4
{[%clk 0:02:08.8]} 33... Rc3 {[%clk 0:01:50.4]} 34. Rxa6 {[%clk 0:02:06.2]}
34... Rxe3 {[%clk 0:01:48.1]} 35. Kg2 {[%clk 0:02:02.8]} 35... Re2+ {[%clk
0:01:40.9]} 36. Kf3 {[%clk 0:02:00.3]} 36... Rh2 {[%clk 0:01:38.6]} 37. Kg3
{[%clk 0:01:58]} 37... Rc2 {[%clk 0:01:35.9]} 38. Ra7 {[%clk 0:01:56]} 38... Rc7
{[%clk 0:01:31.9]} 39. Ra8 {[%clk 0:01:32.6]} 39... Ke7 {[%clk 0:01:28]} 40. a4
{[%clk 0:01:30]} 40... bxa4 {[%clk 0:01:26.3]} 41. bxa4 {[%clk 0:01:29]} 41...
Nd6 {[%clk 0:01:21.7]} 42. h4 {[%clk 0:01:13]} 42... Nf5+ {[%clk 0:01:18.7]} 43.
Kf2 {[%clk 0:01:10.9]} 43... Nxh4 {[%clk 0:01:14.3]} 44. Rh8 {[%clk 0:01:09]}
44... Nf5 {[%clk 0:01:05.5]} 45. Rxh7 {[%clk 0:01:06.8]} 45... Kd6 {[%clk
0:01:01.5]} 46. Rxf7 {[%clk 0:01:03.5]} 46... Rxf7 {[%clk 0:00:55.6]} 47. Nxf7+
{[%clk 0:01:02.3]} 47... Kc6 {[%clk 0:00:52.5]} 48. Nd8+ {[%clk 0:01:01.1]}
48... Kd7 {[%clk 0:00:50.4]} 49. Nf7 {[%clk 0:00:58.8]} 49... Kc6 {[%clk
0:00:48.9]} 50. Ne5+ {[%clk 0:00:57.7]} 50... Kb6 {[%clk 0:00:45.4]} 51. Nxg6
{[%clk 0:00:57.6]} 51... Ka5 {[%clk 0:00:44.2]} 52. Nf8 {[%clk 0:00:56.4]} 52...
Ng7 {[%clk 0:00:41.6]} 53. Ke3 {[%clk 0:00:54.1]} 53... Kxa4 {[%clk 0:00:40.5]}
54. Ke4 {[%clk 0:00:53.5]} 54... Kb5 {[%clk 0:00:39.5]} 55. Ke5 {[%clk 0:00:53]}
55... Kc6 {[%clk 0:00:35.1]} 56. Nxe6 {[%clk 0:00:52.4]} 56... Ne8 {[%clk
0:00:26.8]} 57. Nf8 {[%clk 0:00:47.2]} 57... Kc7 {[%clk 0:00:25.1]} 58. Ke6
{[%clk 0:00:43.9]} 58... Ng7+ {[%clk 0:00:23.6]} 59. Ke7 {[%clk 0:00:42.3]}
59... Nf5+ {[%clk 0:00:21.3]} 60. Kf6 {[%clk 0:00:39.1]} 60... Nd6 {[%clk
0:00:19.2]} 61. g6 {[%clk 0:00:38.2]} 61... Ne8+ {[%clk 0:00:18]} 62. Kf7 {[%clk
0:00:32.9]} 62... Nd6+ {[%clk 0:00:16.9]} 63. Ke6 {[%clk 0:00:28.4]} 63... Ne8
{[%clk 0:00:15.6]} 64. f5 {[%clk 0:00:27.1]} 64... Ng7+ {[%clk 0:00:14.5]} 65.
Kf6 {[%clk 0:00:23.8]} 65... Nxf5 {[%clk 0:00:13.3]} 66. Kxf5 {[%clk 0:00:22.4]}
66... Kd8 {[%clk 0:00:12.4]} 67. g7 {[%clk 0:00:21.7]} 67... Ke8 {[%clk
0:00:11.7]} 68. g8=Q {[%clk 0:00:20.8]} 68... Ke7 {[%clk 0:00:10.9]} 69. Qe6+
{[%clk 0:00:18.9]} 69... Kxf8 {[%clk 0:00:09.2]} 70. Qd7 {[%clk 0:00:18.4]}
70... Kg8 {[%clk 0:00:07.9]} 71. Kg6 {[%clk 0:00:18.3]} 1-0